[Event "RUS-ch Rapid 2021"]
[Site "Sochi"]
[Date "2021.10.13"]
[Round "10.9"]
[White "Iljiushenok, Ilia"]
[Black "Murzin, Volodar"]
[Result "0-1"]
[ECO "B12"]
[WhiteElo "2554"]
[BlackElo "2513"]
[Annotator "ChessBase"]
[PlyCount "70"]
[EventDate "2021.10.12"]
[EventType "swiss"]
[EventCountry "RUS"]
[SourceTitle "playchess.com"]
[Source "ChessBase"]
[SourceQuality "1"]
[TimeControl "900+10"]

1. e4 {[%emt 0:00:00]} c6 {[%emt 0:00:04]} 2. d4 {[%emt 0:00:02]} d5 {[%emt 0:
00:00]} 3. e5 {[%emt 0:00:08]} Bf5 {[%emt 0:00:08]} 4. c4 {[%emt 0:00:02]} e6 {
[%emt 0:00:00]} 5. Nc3 {[%emt 0:00:00]} Ne7 {[%emt 0:00:25]} 6. a3 {[%emt 0:00:
01]} Nd7 {[%emt 0:00:21]} 7. cxd5 {[%emt 0:00:02]} cxd5 {[%emt 0:00:14]} 8. h4
{[%emt 0:01:28]} h6 {[%emt 0:03:19]} 9. g4 {[%emt 0:00:27]} Bh7 {[%emt 0:00:26]
} 10. h5 {[%emt 0:00:09]} Nc6 {[%emt 0:01:28]} 11. Bd3 {[%emt 0:00:04]} Bxd3 {
[%emt 0:00:04]} 12. Qxd3 {[%emt 0:00:06]} Qb6 {[%emt 0:01:00]} 13. Nge2 {
[%emt 0:00:05]} Be7 {[%emt 0:00:06]} 14. f4 {[%emt 0:00:24]} O-O-O {[%emt 0:00:
40]} 15. b4 {[%emt 0:00:21]} Kb8 {[%emt 0:00:39]} 16. Be3 {[%emt 0:04:17]} Rc8
{[%emt 0:02:35]} 17. f5 {[%emt 0:00:57]} Qd8 {[%emt 0:01:07]} 18. O-O {[%emt 0:
00:41]} Bg5 {[%emt 0:00:35]} 19. Nb5 {[%emt 0:03:02]} a6 {[%emt 0:01:07]} 20.
Nbc3 {[%emt 0:00:56]} Ndxe5 {[%emt 0:00:36]} 21. Bxg5 {[%emt 0:00:39]} Nxd3 {
[%emt 0:00:15]} 22. Bxd8 {[%emt 0:00:04]} Rhxd8 {[%emt 0:00:22]} 23. fxe6 {
[%emt 0:00:14]} fxe6 {[%emt 0:00:00]} 24. Rf7 {[%emt 0:00:18]} e5 {[%emt 0:00:
53]} 25. Rd1 {[%emt 0:01:17]} exd4 {[%emt 0:00:16]} 26. Nxd4 {[%emt 0:00:28]}
Nce5 {[%emt 0:00:14]} 27. Rxd3 {[%emt 0:00:17]} Nxf7 {[%emt 0:00:34]} 28. Nce2
{[%emt 0:00:35]} Ne5 {[%emt 0:00:14]} 29. Rg3 {[%emt 0:00:00]} Nc6 {[%emt 0:00:
28]} 30. Ne6 {[%emt 0:00:14]} Rd7 {[%emt 0:00:08]} 31. N2f4 {[%emt 0:00:06]} d4
{[%emt 0:00:22]} 32. Nd3 {[%emt 0:00:00]} Re8 {[%emt 0:00:09]} 33. Nec5 {
[%emt 0:00:10]} Rf7 {[%emt 0:00:17]} 34. g5 {[%emt 0:00:05]} Rf5 {[%emt 0:00:
24]} 35. g6 {[%emt 0:00:02]} Re7 {[%emt 0:00:00]} 0-1

[Event "RUS-ch Rapid 2021"]
[Site "Sochi"]
[Date "2021.10.13"]
[Round "10.10"]
[White "Faizrakhmanov, Ramil"]
[Black "Demidov, Mikhail"]
[Result "0-1"]
[ECO "A40"]
[WhiteElo "2483"]
[BlackElo "2551"]
[Annotator "ChessBase"]
[PlyCount "72"]
[EventDate "2021.10.12"]
[EventType "swiss"]
[EventCountry "RUS"]
[SourceTitle "playchess.com"]
[Source "ChessBase"]
[SourceQuality "1"]
[TimeControl "900+10"]

1. d4 {[%emt 0:00:00]} g6 {[%emt 0:00:00]} 2. c4 {[%emt 0:00:05]} Bg7 {[%emt 0:
00:01]} 3. e4 {[%emt 0:00:00]} Nc6 {[%emt 0:00:06]} 4. Be3 {[%emt 0:00:10]} e5
{[%emt 0:00:04]} 5. d5 {[%emt 0:00:06]} Nd4 {[%emt 0:00:00]} 6. Ne2 {[%emt 0:
00:09]} c5 {[%emt 0:00:07]} 7. dxc6 {[%emt 0:00:12]} dxc6 {[%emt 0:00:04]} 8.
Nbc3 {[%emt 0:00:24]} Be6 {[%emt 0:00:27]} 9. Ng3 {[%emt 0:00:50]} Qa5 {
[%emt 0:01:29]} 10. Bd2 {[%emt 0:02:10]} Qb6 {[%emt 0:01:35]} 11. Na4 {[%emt 0:
00:20]} Qc7 {[%emt 0:00:11]} 12. Nc5 {[%emt 0:00:14]} O-O-O {[%emt 0:00:17]}
13. Nxe6 {[%emt 0:00:20]} Nxe6 {[%emt 0:00:06]} 14. Qa4 {[%emt 0:00:34]} Rxd2 {
[%emt 0:00:15]} 15. Kxd2 {[%emt 0:00:07]} Qb6 {[%emt 0:00:01]} 16. Kc1 {
[%emt 0:00:52]} Qxf2 {[%emt 0:00:21]} 17. Qd1 {[%emt 0:01:44]} Nf6 {[%emt 0:01:
33]} 18. Kb1 {[%emt 0:01:10]} Rd8 {[%emt 0:01:20]} 19. Qe2 {[%emt 0:00:04]} Qb6
{[%emt 0:00:41]} 20. Qc2 {[%emt 0:02:11]} Ng4 {[%emt 0:01:52]} 21. Be2 {
[%emt 0:00:32]} Ne3 {[%emt 0:00:29]} 22. Qb3 {[%emt 0:00:04]} h5 {[%emt 0:01:
43]} 23. Qxb6 {[%emt 0:00:36]} axb6 {[%emt 0:00:05]} 24. a4 {[%emt 0:00:54]}
Nxg2 {[%emt 0:00:25]} 25. Rd1 {[%emt 0:00:29]} Nd4 {[%emt 0:00:04]} 26. a5 {
[%emt 0:00:14]} bxa5 {[%emt 0:00:14]} 27. Rxa5 {[%emt 0:00:03]} Kc7 {[%emt 0:
00:05]} 28. Bf1 {[%emt 0:01:18]} Ne3 {[%emt 0:00:48]} 29. Re1 {[%emt 0:00:22]}
Nec2 {[%emt 0:01:15]} 30. Rd1 {[%emt 0:00:20]} h4 {[%emt 0:00:07]} 31. Ne2 {
[%emt 0:01:27]} Ne3 {[%emt 0:00:05]} 32. Nxd4 {[%emt 0:00:16]} Nxd1 {[%emt 0:
00:05]} 33. Nf3 {[%emt 0:00:05]} Nf2 {[%emt 0:00:22]} 34. Be2 {[%emt 0:00:28]}
Nxe4 {[%emt 0:00:09]} 35. Nxe5 {[%emt 0:00:09]} Re8 {[%emt 0:00:53]} 36. Nf3 {
[%emt 0:00:16]} Nd2+ {[%emt 0:00:22]} 0-1

[Event "RUS-ch Rapid 2021"]
[Site "Sochi"]
[Date "2021.10.13"]
[Round "10.11"]
[White "Gochelashvili, David"]
[Black "Pridorozhni, Aleksei"]
[Result "1-0"]
[ECO "B22"]
[WhiteElo "2400"]
[BlackElo "2564"]
[Annotator "ChessBase"]
[PlyCount "105"]
[EventDate "2021.10.12"]
[EventType "swiss"]
[EventCountry "RUS"]
[SourceTitle "playchess.com"]
[Source "ChessBase"]
[SourceQuality "1"]
[TimeControl "900+10"]

1. e4 {[%emt 0:00:37]} c5 {[%emt 0:00:06]} 2. c3 {[%emt 0:00:00]} e6 {[%emt 0:
00:02]} 3. d4 {[%emt 0:00:01]} d5 {[%emt 0:00:00]} 4. exd5 {[%emt 0:00:42]}
exd5 {[%emt 0:00:02]} 5. Nf3 {[%emt 0:00:24]} Nc6 {[%emt 0:00:00]} 6. Bb5 {
[%emt 0:00:07]} Bd6 {[%emt 0:00:00]} 7. O-O {[%emt 0:00:05]} Nge7 {[%emt 0:00:
02]} 8. dxc5 {[%emt 0:00:02]} Bxc5 {[%emt 0:00:02]} 9. Re1 {[%emt 0:00:03]} O-O
{[%emt 0:00:08]} 10. Be3 {[%emt 0:00:03]} Bxe3 {[%emt 0:00:32]} 11. Rxe3 {
[%emt 0:00:00]} Qb6 {[%emt 0:00:01]} 12. Bxc6 {[%emt 0:01:05]} Nxc6 {[%emt 0:
00:04]} 13. Qb3 {[%emt 0:00:00]} Qxb3 {[%emt 0:00:41]} 14. axb3 {[%emt 0:00:00]
} Bg4 {[%emt 0:00:00]} 15. Nd4 {[%emt 0:00:54]} a5 {[%emt 0:01:04]} 16. f3 {
[%emt 0:01:12]} Bd7 {[%emt 0:00:13]} 17. Kf2 {[%emt 0:00:00]} Rfc8 {[%emt 0:00:
15]} 18. Nb5 {[%emt 0:02:45]} Be6 {[%emt 0:00:59]} 19. N1a3 {[%emt 0:00:13]} a4
{[%emt 0:01:13]} 20. b4 {[%emt 0:02:25]} d4 {[%emt 0:00:00]} 21. Nxd4 {[%emt 0:
00:03]} Nxd4 {[%emt 0:00:07]} 22. cxd4 {[%emt 0:00:00]} Ra6 {[%emt 0:00:15]}
23. Rd1 {[%emt 0:02:03]} Bb3 {[%emt 0:00:09]} 24. Rc1 {[%emt 0:00:26]} Rd8 {
[%emt 0:00:08]} 25. Re7 {[%emt 0:00:16]} Rb6 {[%emt 0:00:24]} 26. Rd7 {[%emt 0:
00:30]} Re8 {[%emt 0:00:10]} 27. Rcc7 {[%emt 0:00:05]} Rbe6 {[%emt 0:00:07]}
28. d5 {[%emt 0:00:20]} Re2+ {[%emt 0:00:29]} 29. Kg3 {[%emt 0:00:00]} Rxb2 {
[%emt 0:00:16]} 30. Rxb7 {[%emt 0:01:34]} Rf8 {[%emt 0:00:13]} 31. d6 {[%emt 0:
00:34]} Be6 {[%emt 0:00:32]} 32. Re7 {[%emt 0:00:26]} Rd8 {[%emt 0:00:10]} 33.
Nb5 {[%emt 0:00:02]} h5 {[%emt 0:01:02]} 34. d7 {[%emt 0:00:59]} Kf8 {[%emt 0:
00:42]} 35. Rxe6 {[%emt 0:00:04]} fxe6 {[%emt 0:00:03]} 36. Nd4 {[%emt 0:00:00]
} Rd2 {[%emt 0:02:45]} 37. Nxe6+ {[%emt 0:00:06]} Ke7 {[%emt 0:00:01]} 38. Nxd8
{[%emt 0:00:12]} Kxd8 {[%emt 0:00:01]} 39. Ra7 {[%emt 0:00:11]} Ra2 {[%emt 0:
00:01]} 40. b5 {[%emt 0:00:58]} Rb2 {[%emt 0:00:26]} 41. Rxa4 {[%emt 0:00:00]}
Rxb5 {[%emt 0:00:03]} 42. Ra8+ {[%emt 0:00:02]} Kxd7 {[%emt 0:00:02]} 43. Ra7+
{[%emt 0:00:11]} Ke6 {[%emt 0:00:00]} 44. Rxg7 {[%emt 0:00:00]} Kf6 {[%emt 0:
00:09]} 45. Rh7 {[%emt 0:00:01]} Kg6 {[%emt 0:00:00]} 46. Rd7 {[%emt 0:00:01]}
Rb2 {[%emt 0:00:05]} 47. Rd6+ {[%emt 0:00:02]} Kf5 {[%emt 0:00:00]} 48. Rd5+ {
[%emt 0:00:00]} Kg6 {[%emt 0:00:02]} 49. Rd6+ {[%emt 0:00:19]} Kf5 {[%emt 0:00:
01]} 50. h4 {[%emt 0:00:00]} Rb8 {[%emt 0:00:18]} 51. Rh6 {[%emt 0:00:09]} Rg8+
{[%emt 0:00:00]} 52. Kh3 {[%emt 0:00:04]} Kf4 {[%emt 0:00:20]} 53. Rxh5 {
[%emt 0:00:00]} 1-0

[Event "RUS-ch Rapid 2021"]
[Site "Sochi"]
[Date "2021.10.13"]
[Round "10.12"]
[White "Zakaryan, David"]
[Black "Triapishko, Alexandr"]
[Result "0-1"]
[ECO "D38"]
[WhiteElo "2283"]
[BlackElo "2506"]
[Annotator "RC"]
[PlyCount "200"]
[EventDate "2021.10.12"]
[EventType "swiss"]
[EventCountry "RUS"]
[SourceTitle "playchess.com"]
[Source "ChessBase"]
[SourceQuality "1"]
[TimeControl "900+10"]

1. d4 {[%emt 0:00:04]} Nf6 {[%emt 0:00:16]} 2. c4 {[%emt 0:00:00]} e6 {[%emt 0:
00:01]} 3. Nf3 {[%emt 0:00:05]} d5 {[%emt 0:00:18]} 4. Bg5 {[%emt 0:01:44]}
Bb4+ {[%emt 0:00:55]} 5. Nc3 {[%emt 0:00:19]} h6 {[%emt 0:00:57]} 6. Bxf6 {
[%emt 0:00:05]} Qxf6 {[%emt 0:00:00]} 7. Qa4+ {[%emt 0:00:01]} Nc6 {[%emt 0:00:
01]} 8. e3 {[%emt 0:00:02]} O-O {[%emt 0:00:53]} 9. Rc1 {[%emt 0:00:00]} Rd8 {
[%emt 0:01:04]} 10. a3 {[%emt 0:00:33]} Bf8 {[%emt 0:03:17]} 11. Be2 {[%emt 0:
00:38]} dxc4 {[%emt 0:03:03]} 12. Qxc4 {[%emt 0:00:08]} Bd6 {[%emt 0:01:02]}
13. O-O {[%emt 0:00:32]} Bd7 {[%emt 0:00:58]} 14. Ne4 {[%emt 0:00:10]} Qe7 {
[%emt 0:00:15]} 15. Rfd1 {[%emt 0:00:09]} Rac8 {[%emt 0:01:39]} 16. Nc5 {
[%emt 0:00:28]} Bxc5 {[%emt 0:00:20]} 17. Qxc5 {[%emt 0:00:00]} Qxc5 {[%emt 0:
00:09]} 18. Rxc5 {[%emt 0:00:00]} Ne7 {[%emt 0:00:11]} 19. Ne5 {[%emt 0:00:04]}
Be8 {[%emt 0:00:25]} 20. Rdc1 {[%emt 0:00:00]} c6 {[%emt 0:00:08]} 21. Ra5 {
[%emt 0:00:11]} a6 {[%emt 0:00:41]} 22. Rac5 {[%emt 0:00:03]} Nd5 {[%emt 0:00:
31]} 23. R5c2 {[%emt 0:00:10]} Kf8 {[%emt 0:00:13]} 24. h4 {[%emt 0:00:05]} g5
{[%emt 0:00:32]} 25. hxg5 {[%emt 0:00:10]} hxg5 {[%emt 0:00:06]} 26. Nd3 {
[%emt 0:00:00]} Ke7 {[%emt 0:00:13]} 27. Nc5 {[%emt 0:00:08]} Rb8 {[%emt 0:00:
06]} 28. g3 {[%emt 0:00:01]} f6 {[%emt 0:00:26]} 29. Bd3 {[%emt 0:00:05]} Bh5 {
[%emt 0:00:27]} 30. Kg2 {[%emt 0:00:00]} Rh8 {[%emt 0:00:07]} 31. Be4 {[%emt 0:
03:52]} Bg4 {[%emt 0:00:16]} 32. Rh1 {[%emt 0:01:37]} Rxh1 {[%emt 0:00:01]} 33.
Kxh1 {[%emt 0:00:00]} a5 {[%emt 0:00:39]} 34. Kg2 {[%emt 0:00:10]} Bf5 {
[%emt 0:00:25]} 35. Bxf5 {[%emt 0:00:22]} exf5 {[%emt 0:00:03]} 36. Kf3 {
[%emt 0:00:12]} b6 {[%emt 0:00:14]} 37. Nd3 {[%emt 0:00:01]} Kd6 {[%emt 0:00:
10]} 38. g4 {[%emt 0:00:07]} Ne7 {[%emt 0:00:04]} 39. gxf5 {[%emt 0:00:53]}
Nxf5 {[%emt 0:00:03]} 40. Kg4 {[%emt 0:00:10]} Ne7 {[%emt 0:00:06]} 41. e4 {
[%emt 0:02:16]} Rh8 {[%emt 0:00:07]} 42. f4 {[%emt 0:00:12]} Rh4+ {[%emt 0:00:
32]} 43. Kg3 {[%emt 0:00:03]} f5 {[%emt 0:00:00]} 44. fxg5 {[%emt 0:02:42]}
Rxe4 {[%emt 0:00:12]} 45. Nf4 {[%emt 0:01:34]} Rxd4 {[%emt 0:00:11]} 46. Kf3 {
[%emt 0:00:10]} Ke5 {[%emt 0:00:10]} 47. Re2+ {[%emt 0:00:23]} Re4 {[%emt 0:00:
00]} 48. Nd3+ {[%emt 0:00:01]} Kd4 {[%emt 0:00:08]} 49. Nf4 {[%emt 0:00:28]}
Rxe2 {[%emt 0:00:10]} 50. Nxe2+ {[%emt 0:00:13]} Ke5 {[%emt 0:00:06]} 51. Nf4 {
[%emt 0:00:02]} Nd5 {[%emt 0:00:36]} 52. Ng6+ {[%emt 0:00:00]} Ke6 {[%emt 0:00:
05]} 53. Nf4+ {[%emt 0:00:34]} Kf7 {[%emt 0:00:10]} 54. Nd3 {[%emt 0:00:08]}
Kg6 {[%emt 0:00:14]} 55. Ne5+ {[%emt 0:00:01]} Kxg5 {[%emt 0:00:02]} 56. Nxc6 {
[%emt 0:00:00]} Kf6 {[%emt 0:00:19]} 57. Ke2 {[%emt 0:00:18]} Ke6 {[%emt 0:00:
08]} 58. Kd3 {[%emt 0:00:02]} Ne7 {[%emt 0:00:11]} 59. Nd4+ {[%emt 0:00:07]}
Kd5 {[%emt 0:00:03]} 60. b4 {[%emt 0:00:11]} axb4 {[%emt 0:00:12]} 61. axb4 {
[%emt 0:00:02]} f4 {[%emt 0:00:00]} 62. Ne2 {[%emt 0:00:06]} Ke5 {[%emt 0:00:
14]} 63. Nd4 {[%emt 0:00:09]} Nf5 {[%emt 0:00:19]} 64. Nf3+ {[%emt 0:00:44]}
Kd5 {[%emt 0:00:02]} 65. Nd2 {[%emt 0:00:07]} Nd6 {[%emt 0:00:04]} 66. Nb1 {
[%emt 0:00:14]} Ne4 {[%emt 0:00:25]} 67. Ke2 {[%emt 0:00:15]} Ng5 {[%emt 0:00:
07]} 68. Kd3 {[%emt 0:00:03]} Nf7 {[%emt 0:00:16]} 69. Nc3+ {[%emt 0:00:04]}
Ke5 {[%emt 0:00:00]} 70. Na4 {[%emt 0:00:11]} b5 {[%emt 0:00:01]} 71. Nc5 {
[%emt 0:01:04]} Kd5 {[%emt 0:00:04]} 72. Nb3 {[%emt 0:01:00]} Ne5+ {[%emt 0:00:
02]} 73. Kc3 {[%emt 0:00:02]} Ke4 {[%emt 0:00:14]} 74. Nd2+ {[%emt 0:00:26]}
Ke3 {[%emt 0:00:02]} 75. Nf1+ {[%emt 0:00:03]} Ke2 {[%emt 0:00:06]} 76. Nh2 {
[%emt 0:00:06]} f3 {[%emt 0:00:24]} 77. Kd4 {[%emt 0:00:07]} Nc4 {[%emt 0:00:
02]} 78. Kc5 {[%emt 0:00:18]} Na3 {[%emt 0:00:04]} 79. Kd4 {[%emt 0:00:00]} f2
{[%emt 0:00:00]} 80. Kc3 {[%emt 0:00:12]} f1=Q {[%emt 0:00:09]} 81. Nxf1 {
[%emt 0:00:00]} Kxf1 {[%emt 0:00:03]} 82. Kb3 {[%emt 0:00:00]} Nc4 {[%emt 0:00:
02]} 83. Kc3 {[%emt 0:00:00]} Ke2 {[%emt 0:00:00]} 84. Kd4 {[%emt 0:00:00]} Kd2
{[%emt 0:00:04]} 85. Kc5 {[%emt 0:00:00]} Na3 {[%emt 0:00:00]} 86. Kd4 {
[%emt 0:00:00]} Kc2 {[%emt 0:00:02]} 87. Ke4 {[%emt 0:00:04]} Kc3 {[%emt 0:00:
00]} 88. Ke5 {[%emt 0:00:00]} Kxb4 {[%emt 0:00:10]} 89. Ke4 {[%emt 0:00:00]}
Kc3 {[%emt 0:00:00]} 90. Ke5 {[%emt 0:00:00]} b4 {[%emt 0:00:00]} 91. Ke4 {
[%emt 0:00:00]} b3 {[%emt 0:00:00]} 92. Ke5 {[%emt 0:00:00]} b2 {[%emt 0:00:06]
} 93. Ke4 {[%emt 0:00:00]} b1=Q+ {[%emt 0:00:00]} 94. Ke5 {[%emt 0:00:00]} Nc4+
{[%emt 0:00:00]} 95. Kd5 {[%emt 0:00:00]} Qf5+ {[%emt 0:00:00]} 96. Kc6 {
[%emt 0:00:00]} Kb4 {[%emt 0:00:04]} 97. Kc7 {[%emt 0:00:00]} Kc5 {[%emt 0:00:
02]} 98. Kd8 {[%emt 0:00:00]} Kd6 {[%emt 0:00:06]} 99. Ke8 {[%emt 0:00:00]} Nb6
{[%emt 0:00:11]} 100. Kd8 {[%emt 0:00:00]} Qf8# {[%emt 0:00:00]} 0-1

[Event "RUS-ch Rapid 2021"]
[Site "Sochi"]
[Date "2021.10.13"]
[Round "10.13"]
[White "Grachev, Boris"]
[Black "Obgolts, Erik"]
[Result "1-0"]
[ECO "E62"]
[WhiteElo "2615"]
[BlackElo "2430"]
[Annotator "RC"]
[PlyCount "161"]
[EventDate "2021.10.12"]
[EventType "swiss"]
[EventCountry "RUS"]
[SourceTitle "playchess.com"]
[Source "ChessBase"]
[SourceQuality "1"]
[TimeControl "900+10"]

1. Nf3 {[%emt 0:00:16]} Nf6 {[%emt 0:00:00]} 2. c4 {[%emt 0:00:06]} g6 {
[%emt 0:00:02]} 3. Nc3 {[%emt 0:00:04]} Bg7 {[%emt 0:00:01]} 4. g3 {[%emt 0:00:
06]} O-O {[%emt 0:00:08]} 5. Bg2 {[%emt 0:00:00]} d6 {[%emt 0:00:02]} 6. d4 {
[%emt 0:00:08]} c6 {[%emt 0:00:03]} 7. O-O {[%emt 0:00:08]} Bf5 {[%emt 0:00:02]
} 8. Ng5 {[%emt 0:00:26]} e5 {[%emt 0:00:00]} 9. d5 {[%emt 0:00:15]} h6 {
[%emt 0:04:42]} 10. Nge4 {[%emt 0:00:25]} Nxe4 {[%emt 0:00:12]} 11. dxc6 {
[%emt 0:02:31]} Nxf2 {[%emt 0:04:34]} 12. cxb7 {[%emt 0:00:42]} Nxd1 {[%emt 0:
00:00]} 13. bxa8=Q {[%emt 0:00:50]} Qb6+ {[%emt 0:00:34]} 14. Kh1 {[%emt 0:02:
56]} Nf2+ {[%emt 0:00:49]} 15. Rxf2 {[%emt 0:00:00]} Qxf2 {[%emt 0:00:05]} 16.
Qf3 {[%emt 0:00:51]} Qd4 {[%emt 0:01:43]} 17. e4 {[%emt 0:01:00]} Be6 {[%emt 0:
00:04]} 18. b3 {[%emt 0:00:37]} f5 {[%emt 0:01:12]} 19. Bb2 {[%emt 0:01:03]}
Qd2 {[%emt 0:00:33]} 20. Qe2 {[%emt 0:00:32]} Qg5 {[%emt 0:00:37]} 21. exf5 {
[%emt 0:00:48]} gxf5 {[%emt 0:01:17]} 22. Rd1 {[%emt 0:00:22]} e4 {[%emt 0:01:
33]} 23. Rxd6 {[%emt 0:00:31]} Bf7 {[%emt 0:00:00]} 24. Nd5 {[%emt 0:00:45]}
Bxd5 {[%emt 0:00:29]} 25. Rxd5 {[%emt 0:00:15]} Bxb2 {[%emt 0:00:24]} 26. Qxb2
{[%emt 0:00:00]} Qe3 {[%emt 0:00:03]} 27. Rd1 {[%emt 0:00:47]} Nc6 {[%emt 0:00:
05]} 28. b4 {[%emt 0:00:23]} f4 {[%emt 0:00:18]} 29. gxf4 {[%emt 0:00:15]} Qxf4
{[%emt 0:00:13]} 30. Rf1 {[%emt 0:00:25]} Qe3 {[%emt 0:00:00]} 31. Rxf8+ {
[%emt 0:00:53]} Kxf8 {[%emt 0:00:00]} 32. Qf6+ {[%emt 0:00:00]} Kg8 {[%emt 0:
00:03]} 33. Qg6+ {[%emt 0:00:09]} Kf8 {[%emt 0:00:13]} 34. Qf6+ {[%emt 0:00:36]
} Kg8 {[%emt 0:00:00]} 35. h3 {[%emt 0:00:25]} Nxb4 {[%emt 0:00:09]} 36. Qg6+ {
[%emt 0:00:15]} Kh8 {[%emt 0:00:11]} 37. Qe8+ {[%emt 0:00:00]} Kg7 {[%emt 0:00:
00]} 38. Qe7+ {[%emt 0:00:03]} Kg8 {[%emt 0:00:13]} 39. Qxb4 {[%emt 0:00:25]}
Qc1+ {[%emt 0:00:04]} 40. Kh2 {[%emt 0:00:00]} Qf4+ {[%emt 0:00:00]} 41. Kg1 {
[%emt 0:00:06]} Qe3+ {[%emt 0:00:31]} 42. Kf1 {[%emt 0:00:07]} Qd3+ {[%emt 0:
00:19]} 43. Kf2 {[%emt 0:00:11]} Qd4+ {[%emt 0:00:24]} 44. Ke1 {[%emt 0:00:39]}
Qe3+ {[%emt 0:00:12]} 45. Kf1 {[%emt 0:00:24]} Qd3+ {[%emt 0:00:18]} 46. Kf2 {
[%emt 0:00:36]} Qd4+ {[%emt 0:00:00]} 47. Ke1 {[%emt 0:00:07]} Qe3+ {[%emt 0:
00:04]} 48. Kd1 {[%emt 0:00:17]} Qg1+ {[%emt 0:00:02]} 49. Kc2 {[%emt 0:00:02]}
Qxg2+ {[%emt 0:00:00]} 50. Qd2 {[%emt 0:00:00]} Qf3 {[%emt 0:00:43]} 51. Qd5+ {
[%emt 0:00:06]} Kf8 {[%emt 0:00:04]} 52. Qa8+ {[%emt 0:00:07]} Ke7 {[%emt 0:00:
07]} 53. Qxa7+ {[%emt 0:00:02]} Ke6 {[%emt 0:00:09]} 54. Qb6+ {[%emt 0:00:09]}
Ke5 {[%emt 0:00:02]} 55. Qc5+ {[%emt 0:00:18]} Kf4 {[%emt 0:00:01]} 56. Qd6+ {
[%emt 0:00:22]} Kg5 {[%emt 0:00:19]} 57. c5 {[%emt 0:00:24]} e3 {[%emt 0:00:15]
} 58. Qe5+ {[%emt 0:00:14]} Kh4 {[%emt 0:00:06]} 59. Kd3 {[%emt 0:00:07]} Qd1+
{[%emt 0:00:34]} 60. Kxe3 {[%emt 0:00:01]} Qe1+ {[%emt 0:00:01]} 61. Kd4 {
[%emt 0:00:03]} Qa1+ {[%emt 0:00:07]} 62. Ke4 {[%emt 0:00:28]} Qb1+ {[%emt 0:
00:02]} 63. Kd5 {[%emt 0:00:12]} Qxa2+ {[%emt 0:00:01]} 64. Kd6 {[%emt 0:00:05]
} Qd2+ {[%emt 0:00:33]} 65. Qd5 {[%emt 0:00:13]} Qf4+ {[%emt 0:00:03]} 66. Kd7
{[%emt 0:00:03]} Kxh3 {[%emt 0:00:07]} 67. c6 {[%emt 0:00:03]} Qa4 {[%emt 0:00:
14]} 68. Ke7 {[%emt 0:00:21]} Qh4+ {[%emt 0:00:05]} 69. Ke8 {[%emt 0:00:10]}
Qa4 {[%emt 0:00:15]} 70. Qd7+ {[%emt 0:00:09]} Kg3 {[%emt 0:00:00]} 71. c7 {
[%emt 0:00:11]} Qe4+ {[%emt 0:00:03]} 72. Kd8 {[%emt 0:00:13]} Qh4+ {[%emt 0:
00:06]} 73. Kc8 {[%emt 0:00:11]} Qe4 {[%emt 0:00:29]} 74. Qd6+ {[%emt 0:00:11]}
Kf3 {[%emt 0:00:05]} 75. Kd7 {[%emt 0:00:08]} Qg4+ {[%emt 0:00:23]} 76. Qe6 {
[%emt 0:00:10]} Qg7+ {[%emt 0:00:00]} 77. Kc6 {[%emt 0:00:15]} Qc3+ {[%emt 0:
00:05]} 78. Kd6 {[%emt 0:00:08]} Qb4+ {[%emt 0:00:17]} 79. Kd7 {[%emt 0:00:04]}
Qd4+ {[%emt 0:00:05]} 80. Ke8 {[%emt 0:00:04]} Qh8+ {[%emt 0:00:02]} 81. Ke7 {
[%emt 0:00:05]} 1-0

[Event "RUS-ch Rapid 2021"]
[Site "Sochi"]
[Date "2021.10.13"]
[Round "10.14"]
[White "Zubritskiy, Artyom"]
[Black "Antipov, Mikhail Al."]
[Result "0-1"]
[ECO "A37"]
[WhiteElo "2442"]
[BlackElo "2619"]
[Annotator "RC"]
[PlyCount "88"]
[EventDate "2021.10.12"]
[EventType "swiss"]
[EventCountry "RUS"]
[SourceTitle "playchess.com"]
[Source "ChessBase"]
[SourceQuality "1"]
[TimeControl "900+10"]

1. c4 {[%emt 0:00:04]} g6 {[%emt 0:00:00]} 2. g3 {[%emt 0:00:00]} c5 {[%emt 0:
00:06]} 3. Bg2 {[%emt 0:00:09]} Bg7 {[%emt 0:00:02]} 4. Nc3 {[%emt 0:00:00]} d6
{[%emt 0:00:08]} 5. Nf3 {[%emt 0:00:00]} Nc6 {[%emt 0:00:06]} 6. O-O {[%emt 0:
00:00]} Bf5 {[%emt 0:00:01]} 7. d3 {[%emt 0:00:43]} Qd7 {[%emt 0:00:01]} 8. Nd5
{[%emt 0:01:09]} Nf6 {[%emt 0:01:20]} 9. Ng5 {[%emt 0:04:24]} h6 {[%emt 0:00:
42]} 10. Nxf6+ {[%emt 0:00:15]} Bxf6 {[%emt 0:00:00]} 11. Ne4 {[%emt 0:00:00]}
Bg7 {[%emt 0:00:06]} 12. Rb1 {[%emt 0:00:56]} Bh3 {[%emt 0:00:16]} 13. Be3 {
[%emt 0:00:19]} b6 {[%emt 0:00:54]} 14. Bxh3 {[%emt 0:01:10]} Qxh3 {[%emt 0:00:
03]} 15. f3 {[%emt 0:00:05]} Qe6 {[%emt 0:00:20]} 16. Qd2 {[%emt 0:01:09]} Bd4
{[%emt 0:01:58]} 17. Bxd4 {[%emt 0:00:39]} cxd4 {[%emt 0:00:00]} 18. b4 {
[%emt 0:00:24]} f5 {[%emt 0:00:57]} 19. Nf2 {[%emt 0:00:00]} Kf7 {[%emt 0:01:
08]} 20. b5 {[%emt 0:00:54]} Ne5 {[%emt 0:00:02]} 21. Qb2 {[%emt 0:01:39]} Qf6
{[%emt 0:00:05]} 22. Ne4 {[%emt 0:02:54]} Qg7 {[%emt 0:00:35]} 23. Nd2 {
[%emt 0:00:01]} Nd7 {[%emt 0:00:16]} 24. f4 {[%emt 0:00:22]} Rhe8 {[%emt 0:01:
30]} 25. Nf3 {[%emt 0:00:07]} e5 {[%emt 0:00:00]} 26. Rbd1 {[%emt 0:00:58]} Nc5
{[%emt 0:00:55]} 27. Qd2 {[%emt 0:00:44]} Rad8 {[%emt 0:01:42]} 28. Rfe1 {
[%emt 0:00:25]} Ne6 {[%emt 0:03:55]} 29. e3 {[%emt 0:00:00]} dxe3 {[%emt 0:00:
01]} 30. Rxe3 {[%emt 0:00:06]} exf4 {[%emt 0:00:12]} 31. gxf4 {[%emt 0:00:00]}
g5 {[%emt 0:00:59]} 32. fxg5 {[%emt 0:00:01]} Nxg5 {[%emt 0:00:03]} 33. Kh1 {
[%emt 0:00:39]} Nh3 {[%emt 0:00:31]} 34. Rf1 {[%emt 0:00:12]} Qg4 {[%emt 0:00:
29]} 35. Rxe8 {[%emt 0:00:12]} Rxe8 {[%emt 0:00:03]} 36. Qxh6 {[%emt 0:00:00]}
Rg8 {[%emt 0:00:00]} 37. Qh7+ {[%emt 0:00:28]} Rg7 {[%emt 0:00:45]} 38. Ng5+ {
[%emt 0:00:08]} Nxg5 {[%emt 0:00:00]} 39. Rxf5+ {[%emt 0:00:02]} Ke6 {[%emt 0:
00:03]} 40. Qxg7 {[%emt 0:00:14]} Qxf5 {[%emt 0:00:28]} 41. Qg8+ {[%emt 0:00:
07]} Nf7 {[%emt 0:00:16]} 42. Qe8+ {[%emt 0:00:20]} Kf6 {[%emt 0:00:01]} 43.
Qe2 {[%emt 0:00:00]} Ne5 {[%emt 0:00:01]} 44. Kg2 {[%emt 0:00:05]} Nxd3 {
[%emt 0:00:04]} 0-1